Cogmind - Beta 15 @@@ ROGUE MODE // 2025.07.17 @ 13:57:57 Player: beans Result: Destroyed by D-53 Grenadier with Mini Grenade Launcher Performance ------------- Evolutions (0) 0 Regions Visited (2) 400 Robots Destroyed (2) 10 Value Destroyed (81) 81 Prototype IDs (0) 0 Alien Tech Used (0) 0 Bonus (0) 0 TOTAL SCORE: 491 Bonus ------- None Cogmind --------- Core Integrity 0/250 Matter 277/300 Energy 99/100 System Corruption 0% Temperature Cool (0) Movement Core (100) Ox1 Location -10/Mines Parts ------- > --- POWER (1) -------- (None) > --- PROPULSION (2) --- (None) > --- UTILITY (2) ------ Small Storage Unit Improved Targeting Computer > --- WEAPON (2) ------- (None) > --- INVENTORY (8) ---- Improved Targeting Computer Rocket Launcher Peak State ------------ > --- POWER ------------ Ion Engine > --- PROPULSION ------- Light Treads Light Treads > --- UTILITY ---------- Small Storage Unit Improved Targeting Computer > --- WEAPON ----------- EM Pulse Gun Rocket Launcher > --- INVENTORY -------- Improved Targeting Computer [Rating: 9] Favorites ----------- Power Ion Engine Engine Ion Engine Propulsion Light Treads Treads Light Treads Utility Small Storage Unit Storage Small Storage Unit Processor Improved Targeting Computer Weapon EM Pulse Gun Energy Gun EM Pulse Gun Launcher Rocket Launcher Build | -11 -10 -10 ------- Run | Yrd Mat Min Slots Evolved . | . . . Power . | . . . Propulsion . | . . . Utility . | . . . Weapon . | . . . Parts Attached 9 | 6 2 1 Power 1 | 1 . . Engine 1 | 1 . . Core . | . . . Reactor . | . . . Propulsion 2 | 2 . . Treads 2 | 2 . . Leg . | . . . Wheel . | . . . Hover . | . . . Flight . | . . . Utility 2 | 1 1 . Device . | . . . Storage 1 | 1 . . Processor 1 | . 1 . Hackware . | . . . Protection . | . . . Artifact . | . . . Weapon 4 | 2 1 1 Energy Gun 3 | 2 1 . Energy Cannon . | . . . Ballistic Gun . | . . . Ballistic Cannon . | . . . Launcher 1 | . . 1 Special Weapon . | . . . Impact Weapon . | . . . Slashing Weapon . | . . . Piercing Weapon . | . . . Special Melee Weapon . | . . . Unidentified Prototypes . | . . . Parts Lost 5 | . 1 4 Power 1 | . . 1 Propulsion 2 | . . 2 Utility . | . . . Weapon 2 | . 1 1 Highest Loss Streak 4 | . 1 4 To Critical Strikes . | . . . Average Backups . | . . 1 Power . | . . . Propulsion . | . . . Utility . | . . 1 Weapon . | . . . Tool/Special . | . . . Unused Backups 1 | . . 1 Power . | . . . Propulsion . | . . . Utility 1 | . . 1 Weapon . | . . . Tool/Special . | . . . Average Slot Usage (%) 84 | . 85 84 Engine 13 | . 14 13 Treads 28 | . 28 28 Storage 14 | . 14 14 Processor 10 | . 6 14 Energy Gun 17 | . 21 13 Peak Build Rating 9 | 6 8 9 Average Rating 6 | 4 6 6 On Entrance 4 | . 6 7 Naked Turns . | . . . Heaviest Build 14 | 14 14 12 Greatest Support 40 | 40 40 40 Greatest Overweight (x) 1 | . . 1 Average Overweight (x) . | . . . Largest Inventory Capacity 8 | 8 8 8 Average Capacity 7 | 6 8 8 Most Carried 4 | 4 2 2 Average Carried . | . . 1 Final Capacity 8 | 8 8 8 Final Carried 2 | . 1 2 Class Distribution -------------------- 100% | Mutant Dominant Class ---------------- Mutant | -10/Materials Mutant | -10/Mines Resources | -11 -10 -10 ----------- Run | Yrd Mat Min Matter Collected 275 | 244 31 . Remotely . | . . . Salvage Created 107 | . 107 . Parts 6 | . 6 . Haulers Intercepted . | . . . Recyclers Shooed . | . . . Parts Field Recycled . | . . . Retrieved Matter . | . . . Parts Self-Destructed . | . . . Prevented . | . . . Kills | -11 -10 -10 ------- Run | Yrd Mat Min Combat Hostiles Destroyed 2 | . 2 . Guns 2 | . 2 . Classes Destroyed 1 | . 1 . Grunt 2 | . 2 . Best Kill Streak 1 | . 1 . Combat Bots Only 1 | . 1 . Max Kills in Single Turn 1 | . 1 . Gunslinging . | . . . Exploded . | . . . Melee . | . . . Uniques/NPCs Destroyed . | . . . Combat | -11 -10 -10 -------- Run | Yrd Mat Min Hostile Shots Fired 41 | . 23 18 Missed 12 | . 10 2 Hits 29 | . 13 16 Projectile 29 | . 13 16 AOE 17 | . . 17 Critical Strikes 1 | . 1 . Damage Taken 828 | . 184 644 Core 257 | . 25 232 Absorbed by Shields . | . . . Core Remaining (%) 100 | 100 . . Volleys Fired 13 | . 10 3 Largest 2 | . 2 2 Hottest 90 | . 90 73 Shots Fired 17 | . 11 6 Gun 14 | . 11 3 Cannon . | . . . Launcher 3 | . . 3 Special . | . . . Kinetic . | . . . Thermal 1 | . 1 . Explosive 3 | . . 3 Electromagnetic 13 | . 10 3 Robot Hit Streak 11 | . 5 11 Robot Miss Streak 2 | . 2 . Penetration Max . | . . . Secondary Targets 1 | . 1 . Max Gunslinging Chain 1 | . 1 . Shots Hit Robots 14 | . 8 6 Core Hits 8 | . 3 5 Critical Kills . | . . . Critical Parts Destroyed . | . . . Critical Strikes . | . . . Melee Attacks . | . . . Impact . | . . . Slashing . | . . . Piercing . | . . . Sneak Attacks . | . . . Combat Hostiles . | . . . Follow-up Attacks . | . . . Damage Inflicted 244 | . 112 132 Guns 143 | . 112 31 Cannons . | . . . Explosions 101 | . . 101 Melee . | . . . Ramming . | . . . Kinetic . | . . . Thermal . | . . . Explosive 101 | . . 101 Electromagnetic 143 | . 112 31 Impact . | . . . Slashing . | . . . Piercing . | . . . Highest Corruption . | . . . Average Corruption . | . . . Corruption Purged . | . . . Corruption Blocked . | . . . Overload Shots . | . . . Overflow Damage . | . . . Projectiles . | . . . Explosions . | . . . Melee . | . . . Knockbacks . | . . . Impact . | . . . Kinetic . | . . . Secondary . | . . . Self-Inflicted Damage 33 | . . 33 Shots 1 | . . 1 Rammed . | . . . Targets Rammed . | . . . Kicked . | . . . Crushed . | . . . Highest Temperature 57 | . 57 32 Average Temperature 18 | . 18 18 Received Heat Transfer 129 | . 129 . Siege Activations . | . . . Martial Activations . | . . . Shielding Activations . | . . . Robots Disrupted . | . . . Combat Hostiles . | . . . Robots Corrupted . | . . . Combat Hostiles . | . . . Parts Fried 1 | . 1 . Impact Corruptions . | . . . Robots Melted . | . . . Combat Hostiles . | . . . Parts Melted . | . . . Heat Transferred . | . . . Parts Sabotaged . | . . . Parts Stolen . | . . . Parts Stripped . | . . . Power Chain Reactions . | . . . Alert | -11 -10 -10 ------- Run | Yrd Mat Min Maximum Alert Level . | . . . Low Security (%) 100 | 100 100 100 Level 1 . | . . . Level 2 . | . . . Level 3 . | . . . Level 4 . | . . . Level 5 . | . . . High Security . | . . . Max Security . | . . . Peak Influence 30 | . 30 11 Initial 3 | . . 3 Average 3 | . 6 . Influence Increases 63 | . 50 13 Destroy 0b10 Robot/C 40 | . 40 . Destroy Leader 10 | . 10 . Destroy Structure 13 | . . 13 Influence Decreases 63 | . 40 23 Entered New Map 7 | . . 7 Time Decay 33 | . 30 3 Lost Part 23 | . 10 13 Squads Dispatched . | . . . Investigation . | . . . Extermination . | . . . Reinforcement . | . . . Assault . | . . . Garrison . | . . . Intercept . | . . . Searches Triggered . | . . . Construction Impeded . | . . . Haulers Reinforced . | . . . Active Scanning Responses . | . . . Cargo Convoy Interrupts . | . . . Stealth | -11 -10 -10 --------- Run | Yrd Mat Min Distress Signals . | . . . Communications Jammed . | . . . Distress Signals . | . . . Times Spotted 4 | . 2 2 Peak Tracking Total 2 | . 2 2 Tactical Retreats . | . . . Traps | -11 -10 -10 ------- Run | Yrd Mat Min Traps Triggered . | . . . Indirectly . | . . . Trap Hack Attempts . | . . . Triggered . | . . . Disarmed . | . . . Reprogrammed . | . . . Reused . | . . . Traps Extracted . | . . . Installed . | . . . Triggered . | . . . Machines | -11 -10 -10 ---------- Run | Yrd Mat Min Machines Disabled . | . . . Max in Single Turn . | . . . Machines Repaired . | . . . Machines Dismantled . | . . . Machines Sabotaged . | . . . Overloaded Fab Kills . | . . . Hacking | -11 -10 -10 --------- Run | Yrd Mat Min Machines Accessed . | . . . Terminals . | . . . Fabricators . | . . . Repair Stations . | . . . Recycling Units . | . . . Scanalyzers . | . . . Garrison Access . | . . . Total Hacks . | . . . Successful . | . . . Failed . | . . . Catastrophic . | . . . Database Lockouts . | . . . Manual . | . . . Terminals . | . . . Fabricators . | . . . Repair Stations . | . . . Recycling Units . | . . . Scanalyzers . | . . . Garrison Access . | . . . Terminal Hacks . | . . . Fabricator Hacks . | . . . Repair Station Hacks . | . . . Recycling Unit Hacks . | . . . Scanalyzer . | . . . Garrison Access Hacks . | . . . Unauthorized Hacks . | . . . Terminals . | . . . Fabricators . | . . . Repair Stations . | . . . Recycling Units . | . . . Scanalyzers . | . . . Garrison Access . | . . . Data Cores Recovered . | . . . Used . | . . . Hacking Detections . | . . . Full Trace Events . | . . . Feedback Events . | . . . Feedback Blocked . | . . . Robot Schematics Acquired . | . . . Robots Built . | . . . Authchips . | . . . Time . | . . . Total Robot Build Rating . | . . . Part Schematics Acquired . | . . . Parts Built . | . . . Authchips . | . . . Time . | . . . Total Part Build Rating . | . . . Parts Repaired . | . . . Time . | . . . Parts Recycled . | . . . Recycled Matter . | . . . Retrieved Matter . | . . . Retrieved Components . | . . . Parts Scanalyzed . | . . . Part Schematics Acquired . | . . . Parts Damaged . | . . . Bothacking | -11 -10 -10 ------------ Run | Yrd Mat Min Used RIF Installer . | . . . Robots Hacked . | . . . Non-combat . | . . . Combat . | . . . Robot Hacks Applied . | . . . Relay Couplers Released . | . . . Fabnet Peak Effective % . | . . . Robots Rewired . | . . . Allies Hacked . | . . . Hacks Repelled . | . . . Allies | -11 -10 -10 -------- Run | Yrd Mat Min Total Allies . | . . . Largest Group . | . . . Highest-Rated Group . | . . . Highest-Rated Ally . | . . . Total Orders . | . . . Ally Attacks . | . . . Total Damage . | . . . Kills . | . . . Allies Corrupted . | . . . Allies Melted . | . . . Intel | -11 -10 -10 ------- Run | Yrd Mat Min Active Infowar (turns) . | . . . Robot Analysis Total . | . . . Derelict Logs Recovered 1 | . . 1 Drone Launches . | . . . Drone Recoveries . | . . . Exploration | -11 -10 -10 ------------- Run | Yrd Mat Min Turns Passed 415 | 57 176 182 Spaces Moved 224 | 40 94 90 Core 18 | 16 . 2 Treads 206 | 24 94 88 Legs . | . . . Wheels . | . . . Hover . | . . . Flight . | . . . Fastest Speed 50 | 50 160 100 Average Speed 151 | 116 160 158 Slowest Speed 160 | 160 160 160 Overloaded Moves . | . . . Propulsion Burnouts . | . . . Robots Hopped . | . . . Potential Cave-ins . | . . . Cave-ins Triggered . | . . . Exploration Rate (%) 19 | 3 18 36 Regions Visited 2 Branch Regions 1 Pre-discovered Areas . | . . . Known Exits Taken . | . . . Unknown Exits Taken 2 | 1 1 . Scrap Searched 1 | . . 1 Spaces Dug . | . . . Terrain Destroyed 15 | . . 15 Melee . | . . . Projectile . | . . . AOE 15 | . . 15 Terrain Rammed . | . . . Walls Destroyed . | . . . Machines Disabled . | . . . Actions | -11 -10 -10 --------- Run | Yrd Mat Min Total 284 | 51 109 124 Wait 28 | . . 28 Move 222 | 39 93 90 Hop . | . . . Pick Up 10 | 6 3 1 Fast Attach . | . . . Attach 9 | 6 2 1 Detach 1 | . . 1 Swap . | . . . Drop 1 | . 1 . Fire 13 | . 10 3 Melee . | . . . Ram . | . . . Kick . | . . . Crush . | . . . Escape Stasis . | . . . Rewire . | . . . Trap . | . . . Miscellaneous . | . . . Route ------- -11/Scrapyard -10/Materials -10/Mines History --------- Turn | Location | Event 4 | -11/Scrapyard | Discovered new exit (range 15) 58 | -11/Scrapyard | Entered Materials 218 | -10/Materials | Discovered new exit (range 11) 234 | -10/Materials | Entered Mines 244 | -10/Mines | Met a Derelict bent on vengeance 316 | -10/Mines | Build established: Mutant 363 | -10/Mines | Learned 2 Materials zone layouts 385 | -10/Mines | Assembled infested the area 391 | -10/Mines | Received a Rocket Launcher from a helpful Derelict 413 | -10/Mines | Core integrity fell below 50% 416 | -10/Mines | Destroyed by D-53 Grenadier with Mini Grenade Launcher Last Messages --------------- that to the mining laser wimps, I say!" H2-1H5(g): "Would you like a rocket launcher? I know I would if I were you, so I'm going to lend you mine." H2-1H5(g) slips back into the shadows. Acquired Rocket Launcher. C-30 ARC bursts open, deploying its payload. D-53 Grenadier unfolds itself. T-07 Excavator destroyed. U-05 Engineer destroyed. EM Pulse Gun destroyed. Ion Engine destroyed. U-05 Engineer lays Concrete. The unstable cave ceiling collapses. U-05 Engineer lays Concrete. Lgt. Treads destroyed. U-05 Engineer builds a Wall. Lgt. Treads destroyed. U-05 Engineer lays Concrete. K-01 Serf destroyed. Map ----- +----------------------------------------------------+ | ?????????????????????????????????????????????? | | ?????????????????????????????????????????????? | | ?????????????????????????????????????????????? | | ?????????????????????????????????????????????? | | ?????????????????????????????????????????????? | | ?????????????????????????????????????????????? | | ?????????????????????????????????????????????? | | ????????????????????????????????????????? ???? | | ????????????????????????????????????????? ???? | | ????????????????????????????????????????? ??? | | ????????????????????????????????????????? """ | | ????????????????????????????????????????? """ | | ??????????????????????????? #???????????? """ | | ?????????????????????????? #??????????? | | ?????????????????????????? #??????????? ? | | ?????????????????###????? ???????????? ? | | ????????????????? ????? #???????????? ? | | ?????????????????# ????# #???????????? #? | | ???????????????### ???# #????????????# #? | | ??????????????## u#?# #????????????# #? | | ?????????###### # #?????????????# #? | | ?????????? # % #??????????????# #? | | ????????????# ##?#####??####### ## | | ????????????# % ### ##?# %| # | | ?????????????# #?# #?# %*! | | ?????????????# @ ### #?# #### | | ?????????????### d # #??# #??# ## | | ???????????????# d #??# #??# #?# | | ??????????????## ##?# #??# #?# | | ?????????????## ### #??# #?# | | ?????????????# ## #??# #?# | | ?????????????# = ## #??# #?# | | ????????????# =%u ### #??# #?# | | ????????????# ## ##?# #??# #?# | | ????????????# ## ## #### #??# ### | | ????????????## #?# ## #??# | | ?????????????###?# ## #??##### | | ????????????????# #### ####### ###??????# | | ????????????????# #??## ?????# #????????# | | ???????????????# #???## #???? #????????# | | ??????????????? #????# #???? ????????# | | ?????????????? #???? ??? ??????### | | ?????????????### #????? ?? ??????# | | ???????????????## #?????? ##?? ??????# | | ????????????????###??????? ##??### ??????## | | ???????????????????????????#??????## ???????## | | ????????????????????????????????????# ???????# | | ????????????????????????????????????? ???????? | | ????????????????????????????????????? ???????? | | ????????????????????????????????????? ???????? | +----------------------------------------------------+ Best States ------------- Heat Dissipation 25 Energy Generation 10 Energy Capacity 250 Matter Stores 300 Matter Capacity 300 Sight Range 16 Terrain Scan Density 10 Evasion (%) 50 Targeting Accuracy 6 Recoil Reduction 2 Item Schematics ----------------- None Robot Schematics ------------------ None Fabricated ------------ Nothing Repaired ---------- Nothing Alien Tech Used ----------------- None Achievements -------------- None Challenges ------------ None Game ------ Seed SpectralFrostSheargun Manual? 0 Play Time 00:04:29 Cumulative 57.5 hours Start 2025.07.17 @ 10:47:07 End 2025.07.17 @ 13:57:57 Sessions 1 Manual Loads 0 Difficulty Rogue Special Mode None Game No. 250 Rogue 250 Adventurer 0 Explorer 0 Win Type - Total 0 Types 0/0/0/0/0/0/0/0/0/0 Lore% 38 Gallery% 29 Achievement% 24 Wizard Run 0 Options --------- Layout 2 ASCII 0 Keyboard 0 Movement Mouse Keybinds 0 Fullscreen 1 Font 24/Terminus Map View 50x44 Zoom Use 0% Tactical HUD 0 Map Filters NONE Filters NONE Steam 1 RUN: 635470a7-af14-4362-84a6-3ffcb9f7b6f0